[Event "Early-Titled-Tuesday-Blitz-September-12-2023"]
[Site "Chess.com"]
[Date "2023.09.12"]
[Round "4"]
[White "Pumpkin_in_moonlight"]
[Black "Shockerlover"]
[Result "1-0"]
[WhiteElo "2289"]
[BlackElo "1995"]
[TimeControl "180+1"]
[EndTime "8:39:28 PDT"]
[Termination "Pumpkin_in_moonlight won on time"]

1. e4 {[%clk 0:03:00.9]} 1... c5 {[%clk 0:02:50.2]} 2. Nf3 {[%clk 0:03:00.4]}
2... c4 {[%clk 0:02:51]} 3. Bxc4 {[%clk 0:02:56.8]} 3... e6 {[%clk 0:02:51]} 4.
O-O {[%clk 0:02:50.3]} 4... Nc6 {[%clk 0:02:49.3]} 5. d4 {[%clk 0:02:46.6]} 5...
d5 {[%clk 0:02:48.7]} 6. exd5 {[%clk 0:02:42.7]} 6... exd5 {[%clk 0:02:49.6]} 7.
Re1+ {[%clk 0:02:41]} 7... Be6 {[%clk 0:02:49.3]} 8. Bb5 {[%clk 0:02:35.7]} 8...
Be7 {[%clk 0:02:42.8]} 9. Bf4 {[%clk 0:02:05.5]} 9... h6 {[%clk 0:02:40.2]} 10.
Ne5 {[%clk 0:01:59.1]} 10... Qb6 {[%clk 0:02:32.8]} 11. Nc3 {[%clk 0:01:25.6]}
11... Nf6 {[%clk 0:02:28.9]} 12. Rb1 {[%clk 0:00:47.3]} 12... O-O {[%clk
0:02:28.1]} 13. Nxc6 {[%clk 0:00:46.4]} 13... bxc6 {[%clk 0:02:26.3]} 14. Bd3
{[%clk 0:00:45.8]} 14... Kh8 {[%clk 0:02:00.8]} 15. Ne2 {[%clk 0:00:45.2]} 15...
Nh7 {[%clk 0:01:55.5]} 16. c3 {[%clk 0:00:43.2]} 16... Qd8 {[%clk 0:01:54.1]}
17. Ng3 {[%clk 0:00:35.9]} 17... Bg5 {[%clk 0:01:52.8]} 18. Bxg5 {[%clk
0:00:30.2]} 18... Nxg5 {[%clk 0:01:52]} 19. Bc2 {[%clk 0:00:25.7]} 19... Qf6
{[%clk 0:01:49.2]} 20. Qd3 {[%clk 0:00:24.1]} 20... g6 {[%clk 0:01:43.8]} 21. h4
{[%clk 0:00:22.5]} 21... Ne4 {[%clk 0:01:28.1]} 22. Nxe4 {[%clk 0:00:22.2]}
22... dxe4 {[%clk 0:01:28.1]} 23. Qxe4 {[%clk 0:00:22.3]} 23... Bf5 {[%clk
0:01:28.2]} 24. Qe2 {[%clk 0:00:20.8]} 24... Bxc2 {[%clk 0:01:25.7]} 25. Qxc2
{[%clk 0:00:20.9]} 25... Qxh4 {[%clk 0:01:25.6]} 26. Re5 {[%clk 0:00:20.2]}
26... Qf6 {[%clk 0:01:14.8]} 27. Rbe1 {[%clk 0:00:19.9]} 27... Rad8 {[%clk
0:01:14.2]} 28. Qe4 {[%clk 0:00:19.7]} 28... Rb8 {[%clk 0:01:08.1]} 29. b3
{[%clk 0:00:19.4]} 29... Rb6 {[%clk 0:00:57.9]} 30. Re3 {[%clk 0:00:19.3]} 30...
Ra6 {[%clk 0:00:56]} 31. Rf3 {[%clk 0:00:19.3]} 31... Qd8 {[%clk 0:00:49.9]} 32.
Rh3 {[%clk 0:00:19.1]} 32... Kg7 {[%clk 0:00:48.8]} 33. Qf4 {[%clk 0:00:18.5]}
33... h5 {[%clk 0:00:44.6]} 34. Rg5 {[%clk 0:00:13.5]} 34... Rh8 {[%clk
0:00:25.4]} 35. g4 {[%clk 0:00:10.2]} 35... hxg4 {[%clk 0:00:22.7]} 36. Rxh8
{[%clk 0:00:08.3]} 36... Qxh8 {[%clk 0:00:23]} 37. Qe5+ {[%clk 0:00:06.1]} 37...
Kg8 {[%clk 0:00:21]} 38. Qe8+ {[%clk 0:00:04.7]} 38... Kg7 {[%clk 0:00:20.6]}
39. Qxh8+ {[%clk 0:00:04.3]} 39... Kxh8 {[%clk 0:00:20.3]} 40. a4 {[%clk
0:00:03]} 40... Rb6 {[%clk 0:00:18.9]} 41. b4 {[%clk 0:00:03.5]} 41... Ra6
{[%clk 0:00:17.1]} 42. a5 {[%clk 0:00:04]} 42... c5 {[%clk 0:00:16.2]} 43. dxc5
{[%clk 0:00:04]} 43... Kg7 {[%clk 0:00:11.7]} 44. Rxg4 {[%clk 0:00:04.1]} 44...
Kf6 {[%clk 0:00:11.3]} 45. Rd4 {[%clk 0:00:04.5]} 45... Ke5 {[%clk 0:00:10.2]}
46. f4+ {[%clk 0:00:04.8]} 46... Kf5 {[%clk 0:00:09.7]} 47. Kf2 {[%clk
0:00:05.5]} 47... Re6 {[%clk 0:00:08.7]} 48. Kf3 {[%clk 0:00:05.4]} 48... f6
{[%clk 0:00:07.5]} 49. Rd5+ {[%clk 0:00:05.5]} 49... Re5 {[%clk 0:00:04.2]} 50.
fxe5 {[%clk 0:00:05.9]} 50... fxe5 {[%clk 0:00:05.1]} 51. Rd6 {[%clk 0:00:05.8]}
51... g5 {[%clk 0:00:04.3]} 52. Ke3 {[%clk 0:00:05.7]} 52... g4 {[%clk
0:00:05.2]} 53. c6 {[%clk 0:00:06]} 53... g3 {[%clk 0:00:04.4]} 54. c7 {[%clk
0:00:06.4]} 54... g2 {[%clk 0:00:04.3]} 55. c8=Q+ {[%clk 0:00:06.8]} 1-0

[Event "Early-Titled-Tuesday-Blitz-September-12-2023"]
[Site "Chess.com"]
[Date "2023.09.12"]
[Round "4"]
[White "GianmarcoVaR"]
[Black "itsdsyr"]
[Result "1-0"]
[WhiteElo "2614"]
[BlackElo "2214"]
[TimeControl "180+1"]
[EndTime "8:39:29 PDT"]
[Termination "GianmarcoVaR won by resignation"]

1. g3 {[%clk 0:02:57.7]} 1... Nf6 {[%clk 0:02:59]} 2. b3 {[%clk 0:02:53.2]} 2...
d5 {[%clk 0:02:58.4]} 3. Bg2 {[%clk 0:02:51.7]} 3... c5 {[%clk 0:02:58.2]} 4.
Bb2 {[%clk 0:02:45.5]} 4... Nc6 {[%clk 0:02:57.9]} 5. Nf3 {[%clk 0:02:45.1]}
5... Qc7 {[%clk 0:02:49.8]} 6. d4 {[%clk 0:02:37.1]} 6... Bf5 {[%clk 0:02:43.8]}
7. O-O {[%clk 0:02:31.7]} 7... e6 {[%clk 0:02:43.4]} 8. e3 {[%clk 0:02:06.8]}
8... Ke7 {[%clk 0:02:41.2]} 9. Qe2 {[%clk 0:02:00.3]} 9... Ke8 {[%clk
0:02:39.7]} 10. Qd1 {[%clk 0:01:59.9]} 10... Be7 {[%clk 0:02:35.4]} 11. Qe2
{[%clk 0:02:00]} 11... h5 {[%clk 0:02:28.3]} 12. h3 {[%clk 0:01:44.2]} 12... Rc8
{[%clk 0:02:22.8]} 13. Na3 {[%clk 0:01:34.7]} 13... a6 {[%clk 0:02:09.6]} 14. c4
{[%clk 0:01:23.5]} 14... Kf8 {[%clk 0:02:04.8]} 15. Rfd1 {[%clk 0:01:12.5]}
15... cxd4 {[%clk 0:01:59]} 16. exd4 {[%clk 0:01:12.1]} 16... Kg8 {[%clk
0:01:53.7]} 17. Rac1 {[%clk 0:00:42.1]} 17... Qa5 {[%clk 0:01:47]} 18. c5 {[%clk
0:00:39.8]} 18... Ne4 {[%clk 0:01:23.8]} 19. Bf1 {[%clk 0:00:20.7]} 19... Qc7
{[%clk 0:01:08.3]} 20. Nb1 {[%clk 0:00:18.7]} 20... Bg6 {[%clk 0:01:03.6]} 21.
a3 {[%clk 0:00:15.7]} 21... h4 {[%clk 0:01:02.7]} 22. g4 {[%clk 0:00:14]} 22...
Qf4 {[%clk 0:01:01.6]} 23. Qe3 {[%clk 0:00:08.6]} 23... Qc7 {[%clk 0:00:58.5]}
24. b4 {[%clk 0:00:05.3]} 24... f5 {[%clk 0:00:57.9]} 25. Nc3 {[%clk 0:00:04.6]}
25... Rf8 {[%clk 0:00:51.6]} 26. Kh1 {[%clk 0:00:03.2]} 26... fxg4 {[%clk
0:00:46.8]} 27. hxg4 {[%clk 0:00:03.7]} 27... Qf4 {[%clk 0:00:46.3]} 28. Qxf4
{[%clk 0:00:02.8]} 28... Rxf4 {[%clk 0:00:46.9]} 29. Nh2 {[%clk 0:00:02.7]}
29... Nxf2+ {[%clk 0:00:45.7]} 30. Kg1 {[%clk 0:00:02.3]} 30... Nxd1 {[%clk
0:00:43]} 31. Nxd1 {[%clk 0:00:02.6]} 31... Nxd4 {[%clk 0:00:39.9]} 32. Ne3
{[%clk 0:00:02.2]} 32... Nf3+ {[%clk 0:00:36.4]} 33. Nxf3 {[%clk 0:00:02.7]}
33... Rxf3 {[%clk 0:00:36.9]} 34. Re1 {[%clk 0:00:03.1]} 34... h3 {[%clk
0:00:33.3]} 35. Be5 {[%clk 0:00:02.6]} 35... Be4 {[%clk 0:00:26]} 36. Bh2 {[%clk
0:00:01.1]} 36... Bh4 {[%clk 0:00:22]} 37. Re2 {[%clk 0:00:01.3]} 37... Bg5
{[%clk 0:00:17.9]} 38. Nd1 {[%clk 0:00:01.1]} 38... Bd3 {[%clk 0:00:16.2]} 39.
Rf2 {[%clk 0:00:01.4]} 39... Rxf2 {[%clk 0:00:13.9]} 40. Nxf2 {[%clk 0:00:02]}
40... Bxf1 {[%clk 0:00:14.5]} 41. Kxf1 {[%clk 0:00:02.7]} 41... Kf7 {[%clk
0:00:13.3]} 42. Ke2 {[%clk 0:00:02.9]} 42... Ke7 {[%clk 0:00:12.8]} 43. Nd3
{[%clk 0:00:03.1]} 43... Bf6 {[%clk 0:00:11.8]} 44. Nf4 {[%clk 0:00:03.3]} 44...
Kd7 {[%clk 0:00:11.5]} 45. Ng6 {[%clk 0:00:03.2]} 45... Re8 {[%clk 0:00:11.4]}
46. Kf3 {[%clk 0:00:03]} 46... d4 {[%clk 0:00:10.6]} 47. Ke4 {[%clk 0:00:03.2]}
47... Kc6 {[%clk 0:00:09.3]} 48. Nf4 {[%clk 0:00:02.5]} 48... Kb5 {[%clk
0:00:08.1]} 49. Nh5 {[%clk 0:00:02.3]} 49... Kc4 {[%clk 0:00:07.7]} 50. Bd6
{[%clk 0:00:02.4]} 50... d3 {[%clk 0:00:07.1]} 51. Bf4 {[%clk 0:00:02.5]} 51...
Kc3 {[%clk 0:00:06.5]} 52. Ng3 {[%clk 0:00:01.6]} 52... Kc2 {[%clk 0:00:05.3]}
53. Nf1 {[%clk 0:00:01.7]} 53... Bc3 {[%clk 0:00:04.5]} 54. Ne3+ {[%clk
0:00:02.1]} 54... Kb1 {[%clk 0:00:03.9]} 55. Kxd3 {[%clk 0:00:02.4]} 55... Bb2
{[%clk 0:00:03.3]} 56. Nc4 {[%clk 0:00:01.9]} 56... Bxa3 {[%clk 0:00:03.9]} 57.
Nxa3+ {[%clk 0:00:02.2]} 57... Ka2 {[%clk 0:00:04.5]} 58. Nc4 {[%clk 0:00:02.6]}
58... Rd8+ {[%clk 0:00:05.1]} 59. Nd6 {[%clk 0:00:03.1]} 59... Kb3 {[%clk
0:00:05.2]} 60. Ke4 {[%clk 0:00:03]} 60... Kxb4 {[%clk 0:00:05.1]} 61. Ke5
{[%clk 0:00:03.8]} 61... Kxc5 {[%clk 0:00:05]} 62. Nxb7+ {[%clk 0:00:04.5]}
62... Kc6 {[%clk 0:00:05.5]} 63. Nxd8+ {[%clk 0:00:05.4]} 63... Kb5 {[%clk
0:00:06.3]} 64. Nxe6 {[%clk 0:00:05.8]} 64... a5 {[%clk 0:00:06.8]} 65. Ng5
{[%clk 0:00:05.2]} 65... a4 {[%clk 0:00:07.4]} 66. Nxh3 {[%clk 0:00:05.7]} 66...
a3 {[%clk 0:00:07.5]} 67. Bc1 {[%clk 0:00:06.4]} 67... a2 {[%clk 0:00:07.6]} 68.
Bb2 {[%clk 0:00:07]} 68... Ka4 {[%clk 0:00:08.2]} 69. Kf5 {[%clk 0:00:07.5]}
69... Kb3 {[%clk 0:00:08.7]} 70. Bxg7 {[%clk 0:00:08]} 70... Kc2 {[%clk
0:00:09]} 71. g5 {[%clk 0:00:08.2]} 71... Kb1 {[%clk 0:00:09.6]} 72. g6 {[%clk
0:00:08.8]} 1-0

[Event "Early-Titled-Tuesday-Blitz-September-12-2023"]
[Site "Chess.com"]
[Date "2023.09.12"]
[Round "4"]
[White "Rud_Makarian"]
[Black "GMAkobianSTL"]
[Result "1-0"]
[WhiteElo "2964"]
[BlackElo "2730"]
[TimeControl "180+1"]
[EndTime "8:39:30 PDT"]
[Termination "Rud_Makarian won on time"]

1. d4 {[%clk 0:03:00.9]} 1... e6 {[%clk 0:02:58.4]} 2. c4 {[%clk 0:03:01.3]}
2... Nf6 {[%clk 0:02:58]} 3. Nf3 {[%clk 0:03:01.8]} 3... d5 {[%clk 0:02:57.6]}
4. g3 {[%clk 0:03:01.9]} 4... Bb4+ {[%clk 0:02:55.7]} 5. Bd2 {[%clk 0:03:01.9]}
5... Be7 {[%clk 0:02:55.7]} 6. Bg2 {[%clk 0:03:02.3]} 6... Nbd7 {[%clk
0:02:55.7]} 7. Qc2 {[%clk 0:03:03.2]} 7... O-O {[%clk 0:02:55.3]} 8. O-O {[%clk
0:03:03.9]} 8... Ne4 {[%clk 0:02:55.2]} 9. Nc3 {[%clk 0:03:03.2]} 9... Nxd2
{[%clk 0:02:53.4]} 10. Nxd2 {[%clk 0:03:01.3]} 10... c6 {[%clk 0:02:52.4]} 11.
a3 {[%clk 0:02:57.4]} 11... dxc4 {[%clk 0:02:51.1]} 12. Nxc4 {[%clk 0:02:58.3]}
12... Nb6 {[%clk 0:02:51.4]} 13. Qd3 {[%clk 0:02:51.6]} 13... Nxc4 {[%clk
0:02:48.4]} 14. Qxc4 {[%clk 0:02:52.5]} 14... Bd7 {[%clk 0:02:48.4]} 15. Rfd1
{[%clk 0:02:52.4]} 15... Rc8 {[%clk 0:02:47.6]} 16. Rac1 {[%clk 0:02:52]} 16...
Qc7 {[%clk 0:02:42.5]} 17. b4 {[%clk 0:02:51.9]} 17... Rfd8 {[%clk 0:02:40]} 18.
e3 {[%clk 0:02:50]} 18... a5 {[%clk 0:02:29.4]} 19. Qb3 {[%clk 0:02:45.7]} 19...
axb4 {[%clk 0:02:26.5]} 20. axb4 {[%clk 0:02:46.6]} 20... Be8 {[%clk 0:02:03]}
21. b5 {[%clk 0:02:36.1]} 21... cxb5 {[%clk 0:01:50.8]} 22. Nd5 {[%clk
0:02:26.4]} 22... Qd6 {[%clk 0:01:23.2]} 23. Nxe7+ {[%clk 0:02:26.2]} 23... Qxe7
{[%clk 0:01:23.1]} 24. Bf1 {[%clk 0:02:23.9]} 24... Rxc1 {[%clk 0:01:03.1]} 25.
Rxc1 {[%clk 0:02:23.5]} 25... b4 {[%clk 0:01:01.4]} 26. Rb1 {[%clk 0:01:41]}
26... e5 {[%clk 0:00:53.9]} 27. dxe5 {[%clk 0:00:58.4]} 27... Qxe5 {[%clk
0:00:52.9]} 28. Qxb4 {[%clk 0:00:59]} 28... Bc6 {[%clk 0:00:50.9]} 29. Bg2
{[%clk 0:00:58]} 29... Bxg2 {[%clk 0:00:48.7]} 30. Kxg2 {[%clk 0:00:58.9]} 30...
Rd7 {[%clk 0:00:39.5]} 31. Qc4 {[%clk 0:00:50]} 31... Qe8 {[%clk 0:00:33.2]} 32.
Rb6 {[%clk 0:00:42.3]} 32... g6 {[%clk 0:00:30.5]} 33. h4 {[%clk 0:00:42.3]}
33... Qd8 {[%clk 0:00:27.2]} 34. Qb4 {[%clk 0:00:27]} 34... h5 {[%clk
0:00:24.1]} 35. Qe4 {[%clk 0:00:17.2]} 35... Qxb6 {[%clk 0:00:20.6]} 36. Qe8+
{[%clk 0:00:16.7]} 36... Kg7 {[%clk 0:00:20.6]} 37. Qxd7 {[%clk 0:00:17.4]}
37... Qc6+ {[%clk 0:00:20.4]} 38. Qxc6 {[%clk 0:00:17.1]} 38... bxc6 {[%clk
0:00:21.3]} 39. Kf3 {[%clk 0:00:15.5]} 39... Kf6 {[%clk 0:00:20.8]} 40. Ke4
{[%clk 0:00:16.1]} 40... Ke6 {[%clk 0:00:21]} 41. Kd4 {[%clk 0:00:14]} 41... Kd6
{[%clk 0:00:21.2]} 42. Kc4 {[%clk 0:00:11.9]} 42... c5 {[%clk 0:00:20]} 43. e4
{[%clk 0:00:11.5]} 43... f5 {[%clk 0:00:16.9]} 44. Kd3 {[%clk 0:00:04.2]} 44...
Ke5 {[%clk 0:00:12.7]} 45. f4+ {[%clk 0:00:04.7]} 45... Ke6 {[%clk 0:00:11.2]}
46. e5 {[%clk 0:00:04.1]} 46... Kd5 {[%clk 0:00:11.4]} 47. Kc3 {[%clk
0:00:04.7]} 47... c4 {[%clk 0:00:11.5]} 48. Kc2 {[%clk 0:00:03.7]} 48... Kc5
{[%clk 0:00:10.7]} 49. Kd2 {[%clk 0:00:04.2]} 49... Kd5 {[%clk 0:00:09.7]} 50.
Kc3 {[%clk 0:00:03.2]} 50... Kc5 {[%clk 0:00:10.1]} 51. Kb2 {[%clk 0:00:03.5]}
51... Kd5 {[%clk 0:00:09.4]} 52. Ka3 {[%clk 0:00:03.6]} 52... Kc5 {[%clk
0:00:07.9]} 53. Ka2 {[%clk 0:00:03.6]} 53... Kd5 {[%clk 0:00:08]} 54. Kb2 {[%clk
0:00:03.9]} 54... Kc5 {[%clk 0:00:07.9]} 55. Ka3 {[%clk 0:00:04.5]} 55... Kd5
{[%clk 0:00:08.2]} 56. Kb4 {[%clk 0:00:04.5]} 56... Kd4 {[%clk 0:00:08.2]} 57.
e6 {[%clk 0:00:05]} 57... c3 {[%clk 0:00:08.6]} 58. e7 {[%clk 0:00:05.8]} 58...
c2 {[%clk 0:00:09.1]} 59. e8=Q {[%clk 0:00:06.4]} 59... c1=Q {[%clk 0:00:09.5]}
60. Qxg6 {[%clk 0:00:05.7]} 60... Qb2+ {[%clk 0:00:04.8]} 61. Ka5 {[%clk
0:00:05.5]} 1-0

[Event "Early-Titled-Tuesday-Blitz-September-12-2023"]
[Site "Chess.com"]
[Date "2023.09.12"]
[Round "4"]
[White "ural58"]
[Black "Leonid_Starozhilov"]
[Result "0-1"]
[WhiteElo "2560"]
[BlackElo "2787"]
[TimeControl "180+1"]
[EndTime "8:39:34 PDT"]
[Termination "Leonid_Starozhilov won by resignation"]

1. e4 {[%clk 0:03:00.9]} 1... c5 {[%clk 0:02:56]} 2. Nf3 {[%clk 0:02:59.8]} 2...
e6 {[%clk 0:02:55.2]} 3. b3 {[%clk 0:02:57.9]} 3... Nc6 {[%clk 0:02:54]} 4. Bb2
{[%clk 0:02:56.1]} 4... a6 {[%clk 0:02:52.5]} 5. c4 {[%clk 0:02:49.5]} 5... d6
{[%clk 0:02:48.2]} 6. d4 {[%clk 0:02:48.9]} 6... cxd4 {[%clk 0:02:48.4]} 7. Nxd4
{[%clk 0:02:49.1]} 7... Nf6 {[%clk 0:02:43.4]} 8. Nxc6 {[%clk 0:02:48.9]} 8...
bxc6 {[%clk 0:02:43.3]} 9. e5 {[%clk 0:02:49]} 9... Ne4 {[%clk 0:02:38.8]} 10.
exd6 {[%clk 0:02:32.5]} 10... Qa5+ {[%clk 0:02:34.5]} 11. Nd2 {[%clk 0:02:26.7]}
11... Bxd6 {[%clk 0:02:34]} 12. Bd3 {[%clk 0:02:16.4]} 12... Nxd2 {[%clk
0:02:32.4]} 13. Ke2 {[%clk 0:01:59.4]} 13... Bf4 {[%clk 0:02:30.3]} 14. g3
{[%clk 0:01:57.8]} 14... Qh5+ {[%clk 0:02:13.9]} 15. Ke1 {[%clk 0:01:49.8]}
15... Nf3+ {[%clk 0:02:01.5]} 16. Kf1 {[%clk 0:01:49.6]} 16... Qh3+ {[%clk
0:01:55.8]} 17. Ke2 {[%clk 0:01:48.9]} 17... Be5 {[%clk 0:01:56.5]} 18. Be4
{[%clk 0:01:17.4]} 18... O-O {[%clk 0:01:45.4]} 19. Bxc6 {[%clk 0:01:02.7]}
19... Bxb2 {[%clk 0:01:35.2]} 20. Bxa8 {[%clk 0:00:54.6]} 20... Nd4+ {[%clk
0:01:35.3]} 21. Kd2 {[%clk 0:00:46.6]} 21... Bxa1 {[%clk 0:01:32.7]} 22. Qxa1
{[%clk 0:00:46.4]} 22... e5 {[%clk 0:01:32.6]} 23. Qe1 {[%clk 0:00:40]} 23...
Bg4 {[%clk 0:01:26.4]} 24. Qxe5 {[%clk 0:00:36.2]} 24... Bf3 {[%clk 0:01:12.1]}
25. Qxd4 {[%clk 0:00:31.4]} 25... Bxa8 {[%clk 0:01:11.1]} 26. Re1 {[%clk
0:00:28.5]} 26... Qxh2 {[%clk 0:01:06.5]} 27. Kc3 {[%clk 0:00:28]} 27... Qh6
{[%clk 0:01:04.8]} 28. Kb4 {[%clk 0:00:20]} 28... Qc6 {[%clk 0:01:02.7]} 29. Ka3
{[%clk 0:00:17.9]} 29... h6 {[%clk 0:01:01.6]} 30. f4 {[%clk 0:00:17.2]} 30...
Rc8 {[%clk 0:00:54.1]} 31. Re3 {[%clk 0:00:17.2]} 31... Qc7 {[%clk 0:00:48.7]}
32. Rc3 {[%clk 0:00:14.8]} 32... Rd8 {[%clk 0:00:44.3]} 33. Qe5 {[%clk
0:00:14.1]} 33... Qc6 {[%clk 0:00:32.2]} 34. b4 {[%clk 0:00:13.3]} 34... Re8
{[%clk 0:00:31.6]} 35. Qd4 {[%clk 0:00:11.4]} 35... Bb7 {[%clk 0:00:31.4]} 36.
Kb3 {[%clk 0:00:11.4]} 36... Bc8 {[%clk 0:00:31.1]} 37. a4 {[%clk 0:00:11.5]}
37... Be6 {[%clk 0:00:26.9]} 38. Ka3 {[%clk 0:00:11.8]} 38... Rc8 {[%clk
0:00:25.2]} 39. c5 {[%clk 0:00:11.6]} 39... Qc7 {[%clk 0:00:23.2]} 40. Qe5
{[%clk 0:00:10.2]} 40... Qd7 {[%clk 0:00:20.9]} 41. f5 {[%clk 0:00:10.2]} 41...
Bxf5 {[%clk 0:00:20.8]} 42. c6 {[%clk 0:00:09.3]} 42... Qe6 {[%clk 0:00:20.1]}
43. Qxe6 {[%clk 0:00:08.9]} 43... Bxe6 {[%clk 0:00:20.4]} 44. b5 {[%clk
0:00:09.7]} 44... axb5 {[%clk 0:00:14.6]} 45. axb5 {[%clk 0:00:09.5]} 45... Bd5
{[%clk 0:00:10.4]} 46. Kb4 {[%clk 0:00:09.5]} 46... f5 {[%clk 0:00:09.2]} 47.
Kc5 {[%clk 0:00:09.9]} 47... Be4 {[%clk 0:00:09.6]} 48. Kd6 {[%clk 0:00:10.3]}
48... g5 {[%clk 0:00:08.7]} 49. b6 {[%clk 0:00:10.6]} 49... f4 {[%clk
0:00:07.2]} 50. b7 {[%clk 0:00:10.6]} 50... Rf8 {[%clk 0:00:06.1]} 51. gxf4
{[%clk 0:00:10.8]} 51... gxf4 {[%clk 0:00:06.7]} 52. Rc4 {[%clk 0:00:10.6]}
52... f3 {[%clk 0:00:05.6]} 53. Rxe4 {[%clk 0:00:10.9]} 53... f2 {[%clk
0:00:06.2]} 54. Rg4+ {[%clk 0:00:11.3]} 54... Kh7 {[%clk 0:00:06.5]} 55. Rf4
{[%clk 0:00:11.6]} 55... Rxf4 {[%clk 0:00:06.1]} 56. b8=Q {[%clk 0:00:11.7]}
56... f1=Q {[%clk 0:00:06.3]} 57. c7 {[%clk 0:00:09.4]} 57... Rf6+ {[%clk
0:00:06.1]} 58. Kd7 {[%clk 0:00:09.6]} 58... Rf7+ {[%clk 0:00:06.5]} 59. Ke8
{[%clk 0:00:09.2]} 59... Rf8+ {[%clk 0:00:06.6]} 60. Kd7 {[%clk 0:00:09.8]}
60... Qf5+ {[%clk 0:00:06.6]} 61. Kc6 {[%clk 0:00:10.1]} 61... Qc2+ {[%clk
0:00:04.7]} 62. Kd7 {[%clk 0:00:10]} 62... Qd3+ {[%clk 0:00:04.8]} 63. Kc6
{[%clk 0:00:10]} 63... Qc4+ {[%clk 0:00:04.7]} 64. Kd7 {[%clk 0:00:08.9]} 64...
Rf7+ {[%clk 0:00:04.6]} 65. Kd6 {[%clk 0:00:08.6]} 65... Qd4+ {[%clk 0:00:04.7]}
66. Ke6 {[%clk 0:00:08.2]} 66... Qd7+ {[%clk 0:00:05.2]} 0-1

[Event "Early-Titled-Tuesday-Blitz-September-12-2023"]
[Site "Chess.com"]
[Date "2023.09.12"]
[Round "4"]
[White "Artem_Sadovsky"]
[Black "esrosenberg"]
[Result "1-0"]
[WhiteElo "2538"]
[BlackElo "2364"]
[TimeControl "180+1"]
[EndTime "8:39:36 PDT"]
[Termination "Artem_Sadovsky won on time"]

1. Nf3 {[%clk 0:02:55.7]} 1... d5 {[%clk 0:02:58.9]} 2. e3 {[%clk 0:02:50.6]}
2... c5 {[%clk 0:02:57.9]} 3. c4 {[%clk 0:02:49.8]} 3... d4 {[%clk 0:02:57]} 4.
b4 {[%clk 0:02:50.1]} 4... f6 {[%clk 0:02:54.8]} 5. bxc5 {[%clk 0:02:38.3]} 5...
e5 {[%clk 0:02:54.6]} 6. exd4 {[%clk 0:02:37.3]} 6... exd4 {[%clk 0:02:44.4]} 7.
d3 {[%clk 0:02:33.5]} 7... Bxc5 {[%clk 0:02:43.5]} 8. Be2 {[%clk 0:02:33.1]}
8... Ne7 {[%clk 0:02:42.8]} 9. O-O {[%clk 0:02:32.4]} 9... O-O {[%clk
0:02:43.5]} 10. Nbd2 {[%clk 0:02:32.5]} 10... Nbc6 {[%clk 0:02:42.5]} 11. Nb3
{[%clk 0:02:32.9]} 11... b6 {[%clk 0:02:42.7]} 12. Nxc5 {[%clk 0:02:22.5]} 12...
bxc5 {[%clk 0:02:42.7]} 13. Qa4 {[%clk 0:02:23.4]} 13... Qd6 {[%clk 0:02:41.1]}
14. Nd2 {[%clk 0:02:17.4]} 14... f5 {[%clk 0:02:33.9]} 15. Ba3 {[%clk
0:02:17.4]} 15... Bd7 {[%clk 0:02:28.5]} 16. Nb3 {[%clk 0:02:09.4]} 16... Nb4
{[%clk 0:02:21.7]} 17. Qa5 {[%clk 0:02:09.4]} 17... Rfc8 {[%clk 0:01:43.4]} 18.
Nxc5 {[%clk 0:01:53.4]} 18... Nec6 {[%clk 0:01:27.6]} 19. Nb7 {[%clk 0:01:45.4]}
19... Qe7 {[%clk 0:01:06]} 20. Bxb4 {[%clk 0:01:45.1]} 20... Nxb4 {[%clk
0:00:58]} 21. Bf3 {[%clk 0:01:45]} 21... Rab8 {[%clk 0:00:57.3]} 22. Qxa7 {[%clk
0:01:40.8]} 22... Nxd3 {[%clk 0:00:57.2]} 23. Qxd4 {[%clk 0:01:39.3]} 23... Ne5
{[%clk 0:00:56]} 24. Bd5+ {[%clk 0:01:37.3]} 24... Kh8 {[%clk 0:00:52.8]} 25.
Rfe1 {[%clk 0:01:38.2]} 25... Bc6 {[%clk 0:00:25.8]} 26. Rxe5 {[%clk 0:01:37.4]}
26... Qxb7 {[%clk 0:00:25.2]} 27. Rae1 {[%clk 0:01:36.6]} 27... Bxd5 {[%clk
0:00:21.5]} 28. cxd5 {[%clk 0:01:36.7]} 28... Rg8 {[%clk 0:00:10.1]} 29. Re7
{[%clk 0:01:36.4]} 29... Qb2 {[%clk 0:00:09.8]} 30. Qxb2 {[%clk 0:01:29.6]}
30... Rxb2 {[%clk 0:00:09.3]} 31. a4 {[%clk 0:01:30.5]} 31... Ra2 {[%clk
0:00:08.5]} 32. d6 {[%clk 0:01:30.5]} 32... Rxa4 {[%clk 0:00:08.1]} 33. Re8
{[%clk 0:01:30.9]} 33... Rd4 {[%clk 0:00:06.3]} 34. R8e6 {[%clk 0:00:45.1]}
34... g6 {[%clk 0:00:05.8]} 35. g3 {[%clk 0:00:41]} 35... Rd8 {[%clk 0:00:04.9]}
36. Re8+ {[%clk 0:00:41]} 36... Rxe8 {[%clk 0:00:05.2]} 37. Rxe8+ {[%clk
0:00:41.9]} 37... Kg7 {[%clk 0:00:06.1]} 38. Rd8 {[%clk 0:00:42.5]} 38... Kf7
{[%clk 0:00:05.6]} 39. Rd7+ {[%clk 0:00:37]} 39... Ke6 {[%clk 0:00:05.5]} 40.
Rxh7 {[%clk 0:00:36.2]} 40... Rxd6 {[%clk 0:00:06.1]} 41. h4 {[%clk 0:00:37.1]}
41... Kf6 {[%clk 0:00:06.4]} 42. Kg2 {[%clk 0:00:37.2]} 42... Rd2 {[%clk
0:00:06.5]} 43. Kf3 {[%clk 0:00:36.8]} 43... Rd3+ {[%clk 0:00:06.3]} 44. Ke2
{[%clk 0:00:36.7]} 44... Ra3 {[%clk 0:00:06.4]} 45. Kf1 {[%clk 0:00:33.9]} 45...
Ke6 {[%clk 0:00:06.4]} 46. Rh6 {[%clk 0:00:33.4]} 46... Kf7 {[%clk 0:00:06.1]}
47. h5 {[%clk 0:00:33.6]} 47... gxh5 {[%clk 0:00:05.7]} 48. Kg2 {[%clk
0:00:34.2]} 48... Kg7 {[%clk 0:00:03]} 49. Rxh5 {[%clk 0:00:34.7]} 49... Kg6
{[%clk 0:00:03.7]} 50. Rh8 {[%clk 0:00:35.2]} 50... Kg5 {[%clk 0:00:03.7]} 51.
Rg8+ {[%clk 0:00:35.3]} 51... Kf6 {[%clk 0:00:04]} 52. Kh3 {[%clk 0:00:34.6]}
52... Ra2 {[%clk 0:00:03.9]} 53. f4 {[%clk 0:00:34.8]} 53... Ra3 {[%clk
0:00:02.9]} 54. Rb8 {[%clk 0:00:33.5]} 54... Kg6 {[%clk 0:00:03]} 55. Rb6+
{[%clk 0:00:33.2]} 55... Kg7 {[%clk 0:00:03.3]} 56. Kh4 {[%clk 0:00:33.3]} 56...
Kf7 {[%clk 0:00:03.5]} 57. Rb7+ {[%clk 0:00:31.7]} 57... Kf6 {[%clk 0:00:03.6]}
58. Rb8 {[%clk 0:00:32.3]} 58... Kg6 {[%clk 0:00:03.6]} 59. Rg8+ {[%clk
0:00:31.9]} 59... Kf6 {[%clk 0:00:03.8]} 60. Kh5 {[%clk 0:00:30.4]} 60... Rb3
{[%clk 0:00:03.3]} 61. Rg6+ {[%clk 0:00:30.5]} 61... Kf7 {[%clk 0:00:02.9]} 62.
Kh6 {[%clk 0:00:31.4]} 62... Rc3 {[%clk 0:00:02.6]} 63. Rg7+ {[%clk 0:00:31.4]}
63... Kf6 {[%clk 0:00:02.3]} 64. Kh7 {[%clk 0:00:32.1]} 64... Rd3 {[%clk
0:00:02.3]} 65. Kg8 {[%clk 0:00:31.4]} 65... Re3 {[%clk 0:00:02.3]} 66. Rf7+
{[%clk 0:00:30.4]} 66... Kg6 {[%clk 0:00:02.9]} 67. Rg7+ {[%clk 0:00:30.6]}
67... Kf6 {[%clk 0:00:03.3]} 68. Kf8 {[%clk 0:00:30.7]} 68... Ra3 {[%clk
0:00:02.2]} 69. Rf7+ {[%clk 0:00:29.7]} 69... Kg6 {[%clk 0:00:02.4]} 70. Kg8
{[%clk 0:00:29.7]} 70... Ra8+ {[%clk 0:00:02]} 71. Rf8 {[%clk 0:00:30.4]} 71...
Ra3 {[%clk 0:00:02.6]} 72. Kh8 {[%clk 0:00:29.2]} 72... Rxg3 {[%clk 0:00:03.1]}
73. Rg8+ {[%clk 0:00:29.5]} 1-0